fUSD/lending_fUSD_20240805
["ID","MTS","AMOUNT","RATE_DAILY","PERIOD"]
[334254298,1722867059553,-151.0,0.00024095,7]
[334254299,1722867059563,-189.805734,0.00024095,7]
[334254300,1722867059572,-248.984585,0.00024095,7]
[334254301,1722867059582,-248.984585,0.00024095,7]
[334254302,1722867059591,-730.409431,0.00024095,7]
[334254303,1722867059601,-730.409431,0.00024095,7]
[334254304,1722867059611,-151.0,0.00024095,7]
[334254305,1722867059620,-151.0,0.00024095,7]
[334254306,1722867059629,-151.0,0.00024095,7]
[334254307,1722867059639,-252.717177,0.00024095,7]
[334254308,1722867059648,-285.384552,0.00024095,7]
[334254309,1722867059658,-252.717177,0.00024095,7]
[334254310,1722867059668,-285.384552,0.00024095,7]
[334254311,1722867059677,-178.516345,0.00024095,7]
[334254312,1722867059687,-178.516345,0.00024095,7]
[334254313,1722867059696,-174.226504,0.00024095,7]
[334254314,1722867059711,-2000.0,0.00024109,2]
[334254315,1722867059722,-225.75664,0.00024153,7]
[334254316,1722867059732,-225.75664,0.00024153,7]
[334254317,1722867059742,-151.0,0.00024153,7]
[334254318,1722867059751,-151.0,0.00024153,7]
[334254319,1722867059761,-237.57617,0.00024153,7]
[334254320,1722867059771,-237.57617,0.00024153,7]
[334254321,1722867059780,-264.162203,0.00024153,7]
[334254322,1722867059790,-264.162203,0.00024153,7]
[334254323,1722867059801,-173.0,0.00024164,2]
[334254324,1722867059810,-942.53215298,0.00024184,2]
[334254325,1722867059820,-320.0,0.00024198,2]
[334254326,1722867059831,-91223.13622037,0.00024198,14]
[334254327,1722867059841,-2235.46465176,0.00024198,14]
[334254328,1722867059851,-1080.67695952,0.00024198,14]
[334254329,1722867059860,-151.0,0.00024198,7]
[334254330,1722867059870,-266.4602,0.00024198,7]
[334254331,1722867059883,-266.4602,0.00024198,7]
[334254332,1722867059893,-2500.0,0.00024218,2]
[334254333,1722867059903,-349.205615,0.00024223,7]
[334254334,1722867059913,-349.205615,0.00024223,7]
[334254335,1722867059922,-221.95,0.00024223,7]
[334254336,1722867059934,-221.95,0.00024223,7]
[334254337,1722867059944,-151.0,0.00024223,7]
[334254338,1722867059957,-277.464589,0.00024223,7]
[334254339,1722867059967,-277.464589,0.00024223,7]
[334254340,1722867059976,-151.0,0.00024223,7]
[334254341,1722867059986,-151.0,0.00024223,7]
[334254342,1722867059996,-151.0,0.00024223,7]
[334254343,1722867060007,-621.572546,0.00024223,2]
[334254344,1722867060017,-891.53169,0.00024223,7]
[334254345,1722867060027,-621.572546,0.00024223,2]
[334254346,1722867060037,-891.53169,0.00024223,7]
[334254347,1722867060047,-151.0,0.00024223,7]
[334254348,1722867060058,-150.0,0.00024225,2]
[334254349,1722867060069,-275.0,0.0002423,2]
[334254350,1722867060079,-150.0,0.0002424,2]
[334254351,1722867060089,-150.0,0.0002424,2]
[334254352,1722867060099,-500.0,0.00024259,2]
[334254353,1722867060108,-500.0,0.00024261,2]
[334254354,1722867060118,-151.0,0.0002427,7]
[334254355,1722867060128,-151.0,0.0002427,7]
[334254356,1722867060138,-151.0,0.00024279,7]
[334254357,1722867060148,-201.985667,0.00024279,7]
[334254358,1722867060158,-201.985667,0.00024279,7]
[334254359,1722867060168,-151.0,0.00024279,7]
[334254360,1722867060178,-164.761329,0.00024279,7]
[334254361,1722867060188,-151.0,0.00024279,7]
[334254362,1722867060198,-164.761329,0.00024279,7]
[334254363,1722867060212,-151.0,0.00024279,7]
[334254364,1722867060222,-370.954806,0.00024279,7]
[334254365,1722867060232,-370.954806,0.00024279,7]
[334254366,1722867060242,-183.68876,0.00024295,7]
[334254367,1722867060252,-183.68876,0.00024295,7]
[334254368,1722867060265,-2500.0,0.00024304,2]
[334254369,1722867060275,-2500.0,0.00024318,2]
[334254370,1722867060286,-5000.0,0.00024321,2]
[334254371,1722867060295,-5000.0,0.00024323,2]
[334254372,1722867060305,-202.619215,0.00024323,7]
[334254373,1722867060316,-500.0,0.00024345,2]
[334254374,1722867060326,-500.0,0.00024354,2]
[334254375,1722867060336,-2500.0,0.00024356,2]
[334254376,1722867060346,-500.0,0.00024363,2]
[334254377,1722867060355,-12538.0,0.00024368,2]
[334254378,1722867060365,-500.0,0.00024372,2]
[334254379,1722867060375,-188.0,0.0002438,30]
[334254380,1722867060384,-500.0,0.0002438,2]
[334254381,1722867060394,-1133.17638335,0.00024382,2]
[334254382,1722867060403,-2000.0,0.00024383,2]
[334254383,1722867060413,-500.0,0.00024389,2]
[334254384,1722867060423,-188.0,0.0002439,30]
[334254385,1722867060433,-2500.0,0.00024392,2]
[334254386,1722867060443,-500.0,0.00024398,2]
[334254387,1722867060455,-1689.719795,0.000244,2]
[334254388,1722867060465,-500.0,0.00024407,2]
[334254389,1722867060474,-151.0,0.0002441,7]
[334254390,1722867060484,-266.4602,0.0002441,7]
[334254391,1722867060493,-266.4602,0.0002441,7]
[334254392,1722867060503,-179.0,0.0002441,12]
[334254393,1722867060514,-5799.77034195,0.00024412,2]
[334254394,1722867061589,-102.83824757,0.00024412,2]
[334254395,1722867061599,-151.0,0.00024415,7]
[334254396,1722867061610,-151.0,0.00024415,7]
[334254397,1722867061620,-225.75664,0.00024415,7]
[334254398,1722867061630,-225.75664,0.00024415,7]
[334254399,1722867061640,-151.0,0.00024415,7]
[334254400,1722867061650,-277.269472,0.00024415,7]
[334254401,1722867061660,-237.57617,0.00024415,7]
[334254402,1722867061671,-237.57617,0.00024415,7]
[334254403,1722867061681,-264.162203,0.00024415,7]
[334254404,1722867061691,-264.162203,0.00024415,7]
[334254405,1722867061705,-500.0,0.00024416,2]
[334254406,1722867061715,-55126.4875011,0.00024423,2]
[334254407,1722867061727,-58111.80855634,0.00024423,2]
[334254408,1722867061739,-643.73155899,0.00024423,2]
[334254409,1722867062447,449.29624025,0.0001,2]
[334254413,1722867094059,167.356356,0.0001,2]
[334254415,1722867103102,1050.08109978,0.0001,2]
[334254417,1722867118932,174.40395404,0.0001,2]
[334254421,1722867248129,500.0,0.00025,60]
[334254434,1722868105891,-66.24085025,0.0001,2]
[334254435,1722868105913,-412.90303818,0.0001,2]
[334254436,1722868105936,-299.81326693,0.0001,2]
[334254437,1722868105959,-1050.08109978,0.0001,2]
[334254438,1722868105980,-359.88074679,0.0001,2]
[334254451,1722868154635,-380.71,0.00010088,2]
[334254452,1722868154662,-300.0,0.000107,3]
[334254453,1722868154685,-600.0,0.000108,3]
[334254456,1722868164556,-900.0,0.000109,3]
[334254457,1722868164580,-7819.29,0.000109,2]
[334254458,1722868177374,7811.08099807,0.0001,2]
[334254459,1722868177939,-10000.0,0.0001,2]
[334254460,1722868188098,-10000.0,0.0001,2]
[334254462,1722868199284,-9330.69442075,0.0001,2]
[334254463,1722868199314,-669.30557925,0.0001,2]
[334254501,1722868232331,-380.77552053,0.0001,2]
[334254502,1722868232341,-299.81326693,0.0001,2]
[334254503,1722868232351,-765.54681254,0.0001,2]
[334254504,1722868232436,-329.14260328,0.0001,2]
[334254505,1722868232449,-554.37876293,0.0001,2]
[334254506,1722868232461,-413.3463029,0.0001,2]
[334254507,1722868232471,-152.76,0.0001099,2]
[334254508,1722868232480,-153.93183382,0.00010995,2]
[334254509,1722868232490,-2414.82654781,0.00010999,2]
[334254510,1722868233330,-439.94441804,0.00010999,2]
[334254511,1722868233342,-2623.158139,0.00010999,2]
[334254512,1722868233420,-2655.12418953,0.00010999,2]
[334254513,1722868233432,-4047.65670562,0.00010999,2]
[334254514,1722868233442,-34.07839335,0.00010999,2]
[334254515,1722868233454,-531.3,0.00010999,2]
[334254558,1722868239824,-1008.19505592,0.00010999,2]
[334254559,1722868239836,-500.0,0.00010999,2]
[334254560,1722868239847,-500.0,0.00010999,2]
[334254561,1722868239858,-500.0,0.00010999,2]
[334254562,1722868239869,-437.39925109,0.00010999,2]
[334254563,1722868239879,-550.0,0.00011,2]
[334254564,1722868239889,-2797.70242835,0.00011,2]
[334254565,1722868239901,-266.625,0.00011,2]
[334254566,1722868239912,-358.33485164,0.00011,2]
[334254567,1722868239924,-1832.23793768,0.00011,2]
[334254568,1722868239937,-575.71729002,0.00011,2]
[334254569,1722868239948,-936.62349835,0.00011,2]
[334254570,1722868239959,-914.0500234,0.00011,2]
[334254571,1722868239971,-2166.78342138,0.00011,2]
[334254572,1722868239983,-1129.71831683,0.00011,2]
[334254573,1722868239994,-6628.30439943,0.00011,2]
[334254579,1722868240343,-289.5932931,0.00011,2]
[334254580,1722868240355,-1965.26659658,0.00011,2]
[334254581,1722868240367,-107281.47721672,0.00011,2]
[334254582,1722868240633,-2626.05140334,0.00011,2]
[334254583,1722868240645,-3249.95340702,0.00011,2]
[334254584,1722868240657,-3512.67903515,0.00011,2]
[334254585,1722868240668,-2310.06028183,0.00011,2]
[334254586,1722868242211,-1614.21694269,0.00011,2]
[334254587,1722868242223,-1585.78305731,0.00011,2]
[334254588,1722868242235,-3281.9,0.00011,2]
[334254589,1722868242246,-532.61,0.00011,2]
[334254590,1722868242257,-2641.025,0.00011,2]
[334254591,1722868242284,-445.91807453,0.00011,2]
[334254622,1722868243526,-535.45,0.00011,2]
[334254625,1722868243538,-711.82512358,0.00011,2]
[334254627,1722868243553,-1608.74904023,0.00011,2]
[334254629,1722868243565,-849.50263948,0.00011,2]
[334254631,1722868243577,-130606.57860386,0.00011,2]
[334254632,1722868243685,-770.18914434,0.00011,2]
[334254668,1722868247047,-1902.3193438,0.00011,2]
[334254669,1722868247059,-445.8571567,0.00011,2]
[334254670,1722868247071,-600474.8191344,0.00011,2]
[334254671,1722868247110,-859.59283247,0.00011,2]
[334254672,1722868247295,-335.451,0.00011,2]
[334254673,1722868247370,-1605.29418,0.00011,2]
[334254682,1722868973731,389.36,9.314e-05,2]
[334254683,1722869030659,1009.17115723,9.314e-05,2]
[334254684,1722869030744,255.90447654,9.314e-05,2]
[334254685,1722869030765,1028.32387499,9.314e-05,2]
[334254686,1722869031001,961.8087359,9.314e-05,2]
[334254687,1722869044893,250.0,9.314e-05,2]
[334254688,1722869046999,961.8087359,9.314e-05,2]
[334254689,1722869070142,155.0,9.314e-05,2]
[334254690,1722869076066,227.63850404,9.314e-05,2]
[334254691,1722869096760,262.18128558,9.314e-05,2]
[334254696,1722869331604,-150.0,0.00010986,2]
[334254697,1722869332922,216.31395803,0.000109,2]
[334254698,1722869344954,-179.02196659,0.00010997,2]
[334254699,1722869344981,-300.0,0.00010998,2]
[334254700,1722869345004,-9154.66407538,0.00010999,2]
[334254707,1722869356204,-166.44820133,0.000109,2]
[334254708,1722869356226,-1050.08109978,0.00010986,2]
[334254709,1722869356248,-8783.47069889,0.00010999,2]
[334254710,1722869371674,-299.81326693,0.00010986,2]
[334254711,1722869371708,-5853.42559666,0.00010999,2]
[334254761,1722869432117,-300.0,0.00010998,2]
[334254763,1722869432127,-7523.73689433,0.00010999,2]
[334254765,1722869432139,-54033.1545393,0.00010999,2]
[334254775,1722869432227,-809.78504088,0.00010999,2]
[334254777,1722869432240,-9841.76315455,0.00010999,2]
[334254780,1722869432250,-68310.97356105,0.00010999,2]
[334254782,1722869432260,-99572.26617802,0.00010999,2]
[334254784,1722869432270,-301392.50856691,0.00011,2]
[334254786,1722869432282,-220676.20491817,0.00011,2]
[334254787,1722869432347,-2390.19999999,0.00011,2]
[334254788,1722869432359,-1085.42033485,0.00011,2]
[334254789,1722869432370,-4228.0863352,0.00011,2]
[334254790,1722869432383,-71101.47243274,0.00011,2]
[334254791,1722869432396,-10283.09270712,0.00011,2]
[334254792,1722869432408,-460.43123519,0.00011,2]
[334254793,1722869432419,-1910.04659137,0.00011,2]
[334254794,1722869432431,-4259.43425738,0.00011,2]
[334254795,1722869432442,-301.2900896,0.00011,2]
[334254797,1722869432454,-943.09082566,0.00011,2]
[334254799,1722869432465,-658.25,0.00011,2]
[334254801,1722869432477,-2109.43741355,0.00011,2]
[334254813,1722869437577,-1050.08109978,0.00010999,2]
[334254814,1722869437587,-59963.22164109,0.00011,2]
[334254815,1722869437599,-525.45071573,0.00011,2]
[334254818,1722869437700,-1251.34130064,0.00011,2]
[334254819,1722869437718,-729.82228752,0.00011,2]
[334254820,1722869437731,-289.4002629,0.00011,2]
[334254821,1722869437743,-3253.18471337,0.00011,2]
[334254822,1722869437755,-2183.16426548,0.00011,2]
[334254823,1722869437766,-281.55,0.00011,2]
[334254824,1722869437778,-1687.69608255,0.00011,2]
[334254825,1722869437790,-15716.19168783,0.00011,2]
[334254826,1722869437804,-11676.6040935,0.00011,2]
[334254827,1722869437818,-10869.48807146,0.00011,2]
[334254828,1722869437835,-355.55693075,0.00011,2]
[334254829,1722869437847,-18716.99087636,0.00011,2]
[334254830,1722869437875,-9135.08849745,0.00011,2]
[334254831,1722869437887,-6343.80348218,0.00011,2]
[334254832,1722869437899,-438.848,0.00011,2]
[334254833,1722869437911,-971.58401182,0.00011,2]
[334254834,1722869437922,-560.905264,0.00011,2]
[334254835,1722869437935,-11841.98269388,0.00011,2]
[334254837,1722869437945,-41964.66321142,0.00011,2]
[334254839,1722869437957,-2385.85676061,0.00011,2]
[334254840,1722869437972,-609.04084905,0.00011,2]
[334254841,1722869437985,-2084.0327375,0.00011,2]
[334254842,1722869437996,-2158.98320904,0.00011,2]
[334254882,1722869441043,-2141.25728077,0.00011,2]
[334254883,1722869441055,-630.25841339,0.00011,2]
[334254884,1722869441066,-902.16144431,0.00011,2]
[334254885,1722869441082,-939.63137312,0.00011,2]
[334254886,1722869441094,-972.28,0.00011,2]
[334254887,1722869441105,-662.70634916,0.00011,2]
[334254888,1722869441116,-502.36071293,0.00011,2]
[334254889,1722869441127,-1362.66063913,0.00011,2]
[334254890,1722869441138,-3233.66704584,0.00011,2]
[334254891,1722869441149,-13831.07070818,0.00011,2]
[334254892,1722869441159,-441.48538942,0.00011,2]
[334254893,1722869441357,-2954.1894928,0.00011,2]
[334254894,1722869442069,-11670.3918889,0.00011,2]
[334254895,1722869442083,-28145.65904328,0.00011,2]
[334254896,1722869442094,-4395.11384839,0.00011095,2]
[334254897,1722869442104,-9170.70684091,0.00011105,2]
[334254898,1722869442113,-1115.61901534,0.00011105,2]
[334254899,1722869442194,-505.53116172,0.00011105,2]
[334254900,1722869442206,-1303.0456392,0.00011105,2]
[334254902,1722869442347,-1547.70426263,0.00011105,2]
[334254903,1722869442357,-929.22119778,0.00011105,2]
[334254965,1722869442739,-397.13604919,0.00011105,2]
[334254967,1722869442751,-398.64275303,0.00011105,2]
[334254969,1722869442761,-3188.93903002,0.00011105,2]
[334254971,1722869442770,-3416.06782922,0.00011105,2]
[334254973,1722869442780,-1405.19425176,0.00011105,2]
[334254974,1722869442791,-531.93797373,0.00011105,2]
[334254975,1722869442802,-1124.68828357,0.00011105,2]
[334254976,1722869442811,-2209.36735237,0.00011105,2]
[334254977,1722869442827,-309.09396936,0.00011105,2]
[334254978,1722869442836,-165.40738318,0.00011105,2]
[334254979,1722869442846,-298.38594994,0.00011105,2]
[334254980,1722869442855,-155.0,0.00011105,2]
[334254981,1722869442865,-155.0,0.00011105,2]
[334254982,1722869442874,-600.38361179,0.00011105,2]
[334254983,1722869442884,-155.0,0.00011105,2]
[334254984,1722869442894,-4090.02216673,0.00011105,2]
[334254985,1722869442904,-439.81414465,0.00011105,2]
[334254986,1722869442914,-2839.42461148,0.00011105,2]
[334254987,1722869442923,-191.44162588,0.00011105,2]
[334254988,1722869442933,-164.21755306,0.00011105,2]
[334254989,1722869442943,-205.81331723,0.00011105,2]
[334254990,1722869442952,-155.0,0.00011105,2]
[334254991,1722869442962,-155.0,0.00011105,2]
[334254992,1722869442972,-155.0981935,0.00011105,2]
[334254993,1722869442981,-155.0,0.00011105,2]
[334254994,1722869442990,-628.24443844,0.00011105,2]
[334254995,1722869443000,-155.0,0.00011105,2]
[334254996,1722869443010,-594.69883351,0.00011105,2]
[334254998,1722869443019,-653.24000473,0.00011105,2]
[334255000,1722869443028,-1176.15950994,0.00011105,2]
[334255002,1722869443038,-722.96983282,0.00011105,2]
[334255004,1722869443047,-155.0,0.00011105,2]
[334255006,1722869443056,-359.17322688,0.00011105,2]
[334255007,1722869443065,-328.03918771,0.00011105,2]
[334255009,1722869443078,-380.10286805,0.00011105,2]
[334255011,1722869443087,-264.84304251,0.00011105,2]
[334255013,1722869443096,-155.0,0.00011105,2]
[334255015,1722869443105,-1074.00301579,0.00011105,2]
[334255017,1722869443115,-161.20570056,0.00011105,2]
[334255019,1722869443124,-243.10335405,0.00011105,2]
[334255021,1722869443133,-155.0,0.00011105,2]
[334255023,1722869443143,-400.0,0.00011105,2]
[334255025,1722869443152,-302.14498907,0.00011105,2]
[334255027,1722869443161,-532.97006944,0.00011105,2]
[334255029,1722869443170,-476.27680701,0.00011105,2]
[334255032,1722869443180,-270.17962438,0.00011105,2]
[334255035,1722869443189,-203.42376603,0.00011105,2]
[334255037,1722869443198,-155.0,0.00011105,2]
[334255039,1722869443207,-155.0,0.00011105,2]
[334255041,1722869443218,-236.13758284,0.00011105,2]
[334255043,1722869443228,-155.0,0.00011105,2]
[334255045,1722869443237,-155.0,0.00011105,2]
[334255047,1722869443246,-2144.62791432,0.00011105,2]
[334255049,1722869443256,-493.31131863,0.00011105,2]
[334255051,1722869443266,-532.27925639,0.00011105,2]
[334255053,1722869443275,-212.16974881,0.00011105,2]
[334255055,1722869443284,-206.64332473,0.00011105,2]
[334255057,1722869443293,-203.28844738,0.00011105,2]
[334255059,1722869443303,-921.03072838,0.00011105,2]
[334255061,1722869443312,-1184.26383039,0.00011105,2]
[334255063,1722869443326,-202.77094298,0.00011105,2]
[334255065,1722869443335,-633.41015136,0.00011105,2]
[334255067,1722869443345,-155.1183536,0.00011105,2]
[334255069,1722869443354,-528.60750449,0.00011105,2]
[334255071,1722869443363,-155.0,0.00011105,2]
[334255073,1722869443373,-547.32462721,0.00011105,2]
[334255075,1722869443383,-454.307743,0.00011105,2]
[334255077,1722869443393,-367.64405093,0.00011105,2]
[334255079,1722869443402,-1138.37465577,0.00011105,2]
[334255081,1722869443411,-3080.259936,0.00011105,2]
[334255083,1722869443420,-401.06988909,0.00011105,2]
[334255084,1722869443429,-155.0,0.00011105,2]
[334255086,1722869443439,-363.95283854,0.00011105,2]
[334255088,1722869443449,-5847.33603609,0.00011105,2]
[334255090,1722869443459,-248.61042332,0.00011105,2]
[334255093,1722869443469,-250.0,0.00011139,2]
[334255095,1722869443478,-219.8681452,0.00011161,2]
[334255097,1722869443487,-261.15,0.00011185,2]
[334255099,1722869443497,-499.99,0.00011185,2]
[334255101,1722869443508,-31657.72533148,0.00011186,2]
[334255103,1722869443517,-22583.02380175,0.00011186,2]
[334255105,1722869443527,-1000.0,0.00011246,2]
[334255107,1722869443535,-250.0,0.00011334,2]
[334255109,1722869443545,-211.38,0.00011342,2]
[334255111,1722869443555,-150.0,0.00011439,2]
[334255113,1722869443564,-389.36,0.00011578,2]
[334255115,1722869443577,-215.48,0.00011832,2]
[334255117,1722869443585,-210.93263361,0.00011959,2]
[334255118,1722869443595,-223.0,0.00012086,2]
[334255119,1722869443605,-500.0,0.0001212,2]
[334255120,1722869443614,-356.17947577,0.0001212,2]
[334255121,1722869443623,-500.0,0.0001212,2]
[334255122,1722869443633,-4970.65267071,0.00012121,2]
[334255123,1722869443642,-2084.37186105,0.00012121,2]
[334255124,1722869443651,-180524.01786982,0.00012121,2]
[334255125,1722869443665,-845.8656788,0.00012121,2]
[334255126,1722869443677,-4085.41056951,0.00012121,2]
[334255127,1722869443689,-1942.04386883,0.00012121,2]
[334255128,1722869443712,-488.13148389,0.00012121,2]
[334255129,1722869443725,-475.67259041,0.00012121,2]
[334255287,1722869445399,-896.81825242,0.00012121,2]
[334255289,1722869445412,-8264.97603201,0.00012121,2]
[334255479,1722869447454,-1094.0838,0.00012121,2]
[334255482,1722869447466,-1624.2,0.00012121,2]
[334255484,1722869447478,-1073.0,0.00012121,2]
[334255486,1722869447490,-8179.95,0.00012121,2]
[334255488,1722869447502,-2073.29355406,0.00012121,2]
[334255490,1722869447515,-400.61843616,0.00012121,2]
[334255493,1722869447526,-152524.758475,0.00012121,2]
[334255495,1722869447536,-449.4087147,0.00012121,2]
[334255497,1722869447547,-2000.0,0.00012329,2]
[334255499,1722869447556,-484.89111714,0.00012391,2]
[334255501,1722869447566,-200.0,0.00012391,2]
[334255503,1722869447589,-1000.0,0.00012652,2]
[334255505,1722869447599,-519.81232661,0.00012665,2]
[334255507,1722869447609,-164.28139414,0.00012666,2]
[334255509,1722869447620,-211.51511495,0.00012696,2]
[334255511,1722869447630,-686.40870172,0.00012749,2]
[334255513,1722869447640,-191.96846127,0.00012818,2]
[334255515,1722869447651,-155.0,0.00012826,2]
[334255517,1722869447662,-155.34386906,0.00012883,2]
[334255520,1722869447673,-155.0,0.00012883,2]
[334255522,1722869447683,-155.0,0.00012924,2]
[334255524,1722869447693,-155.0,0.00012995,2]
[334255526,1722869447703,-1000.0,0.00013,2]
[334255528,1722869447716,-1000.0,0.00013,2]
[334255530,1722869447730,-295.03178914,0.00013,2]
[334255532,1722869447739,-310.0,0.00013,2]
[334255534,1722869447749,-155.0,0.00013,2]
[334255536,1722869447760,-210.87905514,0.00013133,2]
[334255538,1722869447770,-649.45918791,0.00013303,2]
[334255540,1722869447780,-155.07483256,0.0001331,2]
[334255542,1722869447790,-184.13772259,0.0001331,2]
[334255544,1722869447801,-299.81326693,0.00013332,2]
[334255546,1722869447812,-414.57551756,0.00013332,2]
[334255548,1722869447830,-155.0,0.000134,2]
[334255550,1722869447840,-389.14,0.000135,2]
[334255553,1722869447852,-347.45998025,0.00013579,2]
[334255555,1722869447862,-200.0,0.00013699,2]
[334255557,1722869447872,-500.0,0.00013724,4]
[334255559,1722869447882,-23008.5471437,0.000138,3]
[334255561,1722869447893,-389.36,0.00013842,2]
[334255563,1722869447903,-34957.87620778,0.000139,3]
[334255565,1722869447915,-800.4992826,0.000139,3]
[334255567,1722869447927,-34870.56291792,0.000139,3]
[334255570,1722869447940,-2832.00955188,0.000139,3]
[334255572,1722869447954,-2421.488557,0.000139,3]
[334255575,1722869447971,-624.09688597,0.000139,3]
[334255899,1722869472028,3926.0,0.00025,60]
[334255903,1722869512948,18100.0,0.00025,60]
[334255909,1722870305007,300.0,0.000246,60]
[334255967,1722870633812,-384.87,9.888e-05,2]
[334255969,1722870633824,-310.0,0.000104,2]
[334255971,1722870633834,-1240.93047111,0.000105,2]
[334255973,1722870633846,-815.42343772,0.000105,2]
[334255975,1722870633856,-423.20936228,0.00011186,2]
[334255977,1722870633868,-1740.0,0.00011186,2]
[334255980,1722870633880,-9495.19772957,0.00011186,2]
[334255982,1722870633890,-5399.26968187,0.00011324,2]
[334255984,1722870633900,-1000.0,0.00011672,2]
[334255986,1722870633910,-250.0,0.00011764,2]
[334255988,1722870633920,-3819.17,0.00011806,2]
[334255990,1722870633931,-250.0,0.00011808,2]
[334255992,1722870633941,-4473.05915228,0.0001185,2]
[334255994,1722870633951,-499.99,0.0001185,2]
[334255995,1722870633962,-3976.46597667,0.00011896,2]
[334255996,1722870633972,-10527.99021344,0.00011896,2]
[334255997,1722870633983,-384.87,0.00012152,2]
[334255998,1722870633993,-155.07469671,0.00012269,2]
[334255999,1722870634004,-1914.715,0.00012297,2]
[334256000,1722870634015,-1000.0,0.00012329,2]
[334256001,1722870634025,-3118.19667245,0.0001236,2]
[334256002,1722870634035,-3080.259936,0.00012391,2]
[334256003,1722870634046,-1909.90824921,0.00012397,2]
[334256004,1722870634056,-1000.0,0.00012552,2]
[334256005,1722870634066,-1297.13015026,0.00012613,2]
[334256006,1722870634076,-857.70204154,0.00012613,2]
[334256010,1722870637844,-422.408079,0.00011129,2]
[334256011,1722870637854,-639.73553511,0.00012613,2]
[334256012,1722870637864,-686.40870172,0.00012665,2]
[334256013,1722870637874,-1274.49304289,0.00012665,2]
[334256014,1722870637884,-1138.37465577,0.00012666,2]
[334256015,1722870637894,-296.14834675,0.00012666,2]
[334256016,1722870637953,-603.11590882,0.00012666,2]
[334256017,1722870637965,-174.73876022,0.00012666,2]
[334256018,1722870637975,-628.24443844,0.00012666,2]
[334256019,1722870637985,-1138.37465577,0.00012666,2]
[334256020,1722870637995,-1141.45649425,0.00012681,2]
[334256021,1722870638005,-719.34566812,0.00012681,2]
[334256022,1722870638017,-722.96983282,0.00012681,2]
[334256023,1722870638026,-551.56599381,0.00012681,2]
[334256024,1722870638036,-265.28035561,0.00012681,2]
[334256025,1722870638046,-359.17322688,0.00012681,2]
[334256026,1722870638056,-155.0,0.0001269,2]
[334256027,1722870638067,-264.3297815,0.0001269,2]
[334256028,1722870638076,-69.94788605,0.0001269,2]
[334256071,1722870640120,-406.5791448,0.0001269,2]
[334256073,1722870640131,-159.47000849,0.0001269,2]
[334256075,1722870640141,-379.82654153,0.0001269,2]
[334256077,1722870640151,-155.0,0.0001269,2]
[334256079,1722870640161,-225.30930518,0.0001269,2]
[334256081,1722870640174,-10.88477297,0.0001269,2]
[334256082,1722870640184,-381.84120735,0.0001269,2]
[334256084,1722870640195,-295.03178914,0.0001269,2]
[334256086,1722870640207,-357.14442617,0.00012696,2]
[334256088,1722870640233,-493.31131863,0.00012696,2]
[334256090,1722870640243,-71.39448574,0.00012696,2]
[334256092,1722870640255,-344.62556429,0.00012696,2]
[334256094,1722870640268,-112.58745446,0.00012696,2]
[334256096,1722870640279,-191.30057032,0.00012696,2]
[334256098,1722870640290,-484.89111714,0.00012696,2]
[334256100,1722870640300,-224.30972367,0.00012696,2]
[334256102,1722870640309,-243.10335405,0.00012696,2]
[334256104,1722870640319,-167.57550803,0.00012696,2]
[334256106,1722870640329,-209.5823522,0.00012696,2]
[334256108,1722870640338,-201.84,0.00012744,2]
[334256109,1722870640349,-401.15811799,0.00012749,2]
[334256111,1722870640359,-205.40364118,0.00012749,2]
[334256113,1722870640369,-155.0,0.00012749,2]
[334256115,1722870640378,-400.0,0.00012749,2]
[334256117,1722870640389,-284.96139182,0.00012749,2]
[334256119,1722870640399,-155.0,0.00012749,2]
[334256121,1722870640409,-367.64405093,0.00012818,2]
[334256123,1722870640418,-367.64405093,0.00012818,2]
[334256124,1722870640428,-155.0,0.00012818,2]